[Event "13th Chennai Open 2022"]
[Site "Chennai"]
[Date "2022.06.24"]
[Round "8.12"]
[White "Daakshin Arun"]
[Black "Karthikeyan, P.."]
[Result "1-0"]
[ECO "E52"]
[WhiteElo "2016"]
[BlackElo "2361"]
[Annotator "TA"]
[PlyCount "71"]
[EventDate "2022.06.19"]
[EventType "swiss"]
[EventCountry "IND"]
[SourceTitle "playchess.com"]
[Source "ChessBase"]
[SourceQuality "1"]
[TimeControl "5400+30"]

{[%evp 15,71,-7,-3,-10,-2,-2,4,-10,30,-13,-10,-13,-19,-16,0,0,0,0,0,0,0,0,0,-15,-10,-15,-16,-54,20,0,0,0,0,0,0,0,0,0,0,0,0,-54,-55,-67,-64,-56,-28,-37,-40,-46,0,0,279,281,277,285,29995,29996]} 1. d4 {[%emt 0:00:08]} Nf6 {[%emt 0:00:05]} 2. c4 {[%emt 0:00:07]} e6 {[%emt 0:00:27]} 3. Nc3 {[%emt 0:00:05]} Bb4 {[%emt 0:00:06]} 4. Bd2 {[%emt 0:00:16]} d5 {[%emt 0:05:06]} 5. e3 {[%emt 0:00:21]} O-O {[%emt 0:00:48]} 6. Nf3 {[%emt 0:00:38]} b6 {[%emt 0:01:42]} 7. cxd5 {[%emt 0:01:07]} exd5 {[%emt 0:00:14]} 8. Bd3 {[%emt 0:00:35]} Bb7 {[%emt 0:01:52]} 9. Ne5 {[%emt 0:01:16] E52: Nimzo-Indian: Rubinstein: 4...0-0 5 Nf3 d5 6 Bd3 b6.} Bd6 {[%emt 0:01:39]} 10. O-O {[%emt 0:01:27]} c5 {[%emt 0:00:14]} 11. Rc1 {[%emt 0:03:09] The position is equal.} a6 {[%emt 0:12:30] [#]} 12. a4 $146 {[%emt 0:08:49]} ({Predecessor:} 12. f4 Nc6 13. Ng4 Nxg4 14. Qxg4 cxd4 15. Nxd5 dxe3 16. Bc3 Be5 17. fxe5 Qxd5 18. Be4 Qe6 {1-0 (32) Bluebaum,M (2673)-Tregubov,P (2543) Chess.com INT 2022}) 12... Nc6 {[%emt 0:08:45]} 13. Nxc6 {[%emt 0:07:02]} Bxc6 {[%emt 0:04:23]} 14. b3 {[%emt 0:04:44] Inhibits c4.} Qe7 {[%emt 0:01:09]} 15. Qe2 {[%emt 0:05:07]} Qb7 {[%emt 0:00:44]} 16. f3 {[%emt 0:03:41]} Qb8 {[%emt 0:06:07] White must now prevent ...cxd4.} 17. g3 {[%emt 0:02:49]} Re8 {[%emt 0:04:33]} 18. Qf2 {[%emt 0:02:30]} Nd7 {[%emt 0:01:21]} 19. Ne2 {[%emt 0:08:24]} b5 {[%emt 0:05:02]} 20. e4 {[%emt 0:04:40]} c4 {[%emt 0:01:50]} 21. Bb1 {[%emt 0:02:09]} f6 {[%emt 0:09:51]} ({Black should play} 21... Ba3 $1 $15 22. Rc2 Qd6) 22. axb5 {[%emt 0:05:09]} axb5 {[%emt 0:04:56]} 23. exd5 {[%emt 0:03:36]} Bxd5 {[%emt 0:00:36]} 24. Nc3 $1 {[%emt 0:02:43]} Bf7 {[%emt 0:00:32]} 25. bxc4 $1 {[%emt 0:04:43]} Bxc4 {[%emt 0:00:16]} 26. Rfe1 {[%emt 0:01:01]} Nb6 {[%emt 0:07:05]} 27. Be4 {[%emt 0:03:24]} b4 {[%emt 0:04:52]} 28. Nd1 {[%emt 0:04:13]} ({White should try} 28. Bxa8 $11 bxc3 29. Rxe8+ Qxe8 30. Be4 cxd2 31. Qxd2) 28... Bd5 {[%emt 0:00:40]} 29. Qe2 {[%emt 0:06:49]} Bf7 {[%emt 0:10:20] [#] And now ...f5 would win.} 30. Ne3 {[%emt 0:04:05][%cal Bd1e3,Be3f5,Bf5h6][%mdl 32]} Ra2 {[%emt 0:01:35]} 31. Qd3 $1 {[%emt 0:01:41]} Kh8 {[%emt 0:02:21]} 32. Nf5 $1 {[%emt 0:01:49]} Bc4 {[%emt 0:02:12]} 33. Rxc4 $11 {[%emt 0:00:44]} Nxc4 {[%emt 0:00:02][%mdl 8192]} (33... Rxd2 $1 $11 {and Black is okay.} 34. Qxd2 Nxc4) 34. Qxc4 $18 {[%emt 0:00:18]} Rxd2 {[%emt 0:00:24]} 35. Qf7 {[%emt 0:00:31][%csl Gf5][%cal Rf7g7] Chess con chili.} Bf8 {[%emt 0:01:53] [#]} (35... Rg8 $18 36. Bd5 Bc7) 36. Nh6 $1 {[%emt 0:00:12][%mdl 512] Weighted Error Value: White=0.07 (flawless) /Black=0.45} 1-0

[Event "13th Chennai Open 2022"]
[Site "Chennai"]
[Date "2022.06.24"]
[Round "8.13"]
[White "Ramnathan, Balasubramaniam"]
[Black "Laxman, R.R."]
[Result "0-1"]
[ECO "C88"]
[WhiteElo "2119"]
[BlackElo "2420"]
[Annotator "TA"]
[PlyCount "90"]
[EventDate "2022.06.19"]
[EventType "swiss"]
[EventCountry "IND"]
[SourceTitle "playchess.com"]
[Source "ChessBase"]
[SourceQuality "1"]
[TimeControl "5400+30"]

{[%evp 27,90,-10,0,-15,0,-11,0,-18,-24,-25,-23,-33,-25,-31,-24,-15,-14,-15,-15,-10,-6,-1,0,0,0,0,0,-60,-62,-114,-112,-112,-98,-109,-110,-102,-73,-113,-109,-127,-115,-132,-99,-118,-103,-113,-113,-202,-215,-217,-186,-210,-206,-189,-181,-234,-184,-318,-195,-308,-276,-1124,-1014,-2282,-2183]} 1. e4 {[%emt 0:00:10]} e5 {[%emt 0:00:06]} 2. Nf3 {[%emt 0:00:12]} Nc6 {[%emt 0:00:13]} 3. Bb5 {[%emt 0:00:17][%cal Bf1b5,Bb5a4,Ba4b3,Bb3a2][%mdl 32]} a6 {[%emt 0:00:11]} 4. Ba4 {[%emt 0:00:06]} Nf6 {[%emt 0:00:05]} 5. O-O {[%emt 0:00:23]} Be7 {[%emt 0:00:14]} 6. Re1 {[%emt 0:00:26]} b5 {[%emt 0:00:11]} 7. Bb3 {[%emt 0:00:07]} O-O {[%emt 0:00:07]} 8. a4 {[%emt 0:00:36]} Bb7 {[%emt 0:01:14]} 9. Nc3 {[%emt 0:00:35]} d6 {[%emt 0:01:03]} 10. d3 {[%emt 0:00:58]} Na5 {[%emt 0:00:10]} 11. Ba2 {[%emt 0:00:30]} b4 {[%emt 0:00:33]} 12. Ne2 {[%emt 0:00:51]} c5 {[%emt 0:00:25]} 13. Ng3 {[%emt 0:00:22]} Bc8 {[%emt 0:00:55]} 14. Bd2 {[%emt 0:04:14] 14.c3 is the modern continuation.} Rb8 {[%emt 0:01:35]} 15. h3 {[%emt 0:03:12] C88: Closed Ruy Lopez: Anti-Marshall Systems.} Be6 {[%emt 0:02:47]} 16. Bxe6 {[%emt 0:07:20]} fxe6 {[%emt 0:00:05]} 17. Ng5 {[%emt 0:05:45] The position is equal.} Qd7 {[%emt 0:00:51]} 18. f4 {[%emt 0:00:52]} exf4 {[%emt 0:01:47]} 19. Bxf4 {[%emt 0:00:05]} Nc6 {[%emt 0:01:49]} 20. Be3 {[%emt 0:02:40]} h6 {[%emt 0:03:18]} 21. Nf3 {[%emt 0:00:05] [#]} d5 $146 {[%emt 0:03:23]} ({Predecessor:} 21... Qe8 22. c3 bxc3 23. bxc3 Ne5 24. Nxe5 dxe5 25. Qc2 Qc6 26. c4 Rb7 27. Bd2 Rfb8 {0-1 (45) Chilchenko,N-Gutop,Y (2509) ICCF corr 1984}) 22. Bf4 {[%emt 0:12:15]} Rbe8 {[%emt 0:01:08][%cal Of6e4]} 23. Ne5 {[%emt 0:00:36]} Nxe5 {[%emt 0:00:14]} 24. Bxe5 {[%emt 0:00:08]} Bd6 $36 {[%emt 0:03:05][%mdl 2048] White is under pressure.} 25. Bxd6 {[%emt 0:06:11]} (25. exd5 {looks sharper.} exd5 26. Bxd6 Qxd6 27. Nf5) 25... Qxd6 {[%emt 0:03:27]} 26. e5 {[%emt 0:03:49]} Qc7 {[%emt 0:00:06]} 27. Nh5 {[%emt 0:18:19]} (27. exf6 $11 Qxg3 28. Qh5) 27... Nd7 $15 {[%emt 0:06:40]} 28. Re3 {[%emt 0:14:52]} ({White should try} 28. Qg4 $15 Re7 29. Nf6+ Nxf6 30. exf6 Rxf6 31. Rf1) 28... Rf5 $17 {[%emt 0:02:46]} (28... Nxe5 29. Qe1 Nc6 30. Rxe6) 29. Qe2 {[%emt 0:04:36]} Rxe5 {[%emt 0:01:10]} ({Much weaker is} 29... Nxe5 $6 30. Ng3 Rg5 31. h4 $11) 30. Re1 {[%emt 0:00:10][%cal Re3e5]} Rxe3 {[%emt 0:00:25]} 31. Qxe3 {[%emt 0:00:08]} Qd6 {[%emt 0:01:41]} 32. Qf3 {[%emt 0:00:39]} Re7 {[%emt 0:02:43]} (32... a5 {is more complex.} 33. b3 Kh7 34. Qf7 Re7) 33. c3 {[%emt 0:01:12]} bxc3 {[%emt 0:01:59]} 34. bxc3 {[%emt 0:00:04]} e5 {[%emt 0:01:28]} 35. Qg4 {[%emt 0:00:17]} Qe6 {[%emt 0:01:34]} 36. Qh4 {[%emt 0:01:08]} Rf7 {[%emt 0:01:58] Against Nf4} 37. d4 {[%emt 0:01:55]} (37. c4 $17 {was called for.}) 37... cxd4 {[%emt 0:00:08]} 38. cxd4 {[%emt 0:00:09]} Qb6 {[%emt 0:00:15]} 39. Rd1 {[%emt 0:00:56]} Qb3 {[%emt 0:06:14]} 40. Qg4 {[%emt 0:00:41]} Qxa4 {[%emt 0:00:45]} 41. Kh2 {[%emt 0:01:42]} (41. dxe5 $142 Qxg4 42. hxg4 Nxe5 43. Rxd5 Nxg4 44. Rd4) 41... Qc6 {[%emt 0:04:13]} 42. Rd3 {[%emt 0:03:04]} (42. dxe5 $142 Nxe5 43. Qd4) 42... exd4 {[%emt 0:02:12]} 43. Rg3 {[%emt 0:00:57]} (43. Qxd4 $142 Qc7+ 44. Kg1) 43... Nf6 $19 {[%emt 0:03:09]} 44. Qg6 {[%emt 0:06:51] [#]} (44. Nxf6+ Qxf6 45. Ra3) 44... Qc7 $1 {[%emt 0:00:01]} 45. h4 {[%emt 0:00:55]} (45. Qf5 Ne4) 45... Ne4 {[%emt 0:01:03] Weighted Error Value: White=0.68/Black=0.10 (very precise)} 0-1

[Event "13th Chennai Open 2022"]
[Site "Chennai"]
[Date "2022.06.24"]
[Round "8.14"]
[White "Nguyen, Thanh Thuy Tien"]
[Black "Nguyen, Van Huy"]
[Result "0-1"]
[ECO "B19"]
[WhiteElo "1996"]
[BlackElo "2405"]
[Annotator "TA"]
[PlyCount "120"]
[EventDate "2022.06.19"]
[EventType "swiss"]
[EventCountry "IND"]
[SourceTitle "playchess.com"]
[Source "ChessBase"]
[SourceQuality "1"]
[TimeControl "5400+30"]

{[%evp 21,120,-22,21,-40,38,40,27,15,116,118,197,-35,-20,-20,-19,-20,-20,-12,-6,-3,62,74,60,64,65,34,38,0,0,0,0,0,0,0,0,-64,-64,-81,-95,-102,-80,-87,-89,-80,-38,-38,-38,-38,-38,-39,-39,-44,-15,-175,-45,-138,-95,-104,-101,-118,-101,-259,-261,-321,-322,-382,-310,-506,-437,-1078,-1078,-1078,-964,-887,-155,-155,-155,-155,-155,-245,-128,-29968,-245,-29968,-29970,-29967,-29967,-29976,-29977,-29979,-29980,-29980,-29980,-29980,-29981,-29981,-29982,-29979,-29979,-29978,-29977]} 1. e4 {[%emt 0:00:07]} c6 {[%emt 0:00:36]} 2. d4 {[%emt 0:00:09]} d5 {[%emt 0:00:07]} 3. Nc3 {[%emt 0:00:11]} dxe4 {[%emt 0:00:25]} 4. Nxe4 {[%emt 0:00:09]} Bf5 {[%emt 0:00:05]} 5. Ng3 {[%emt 0:00:15]} Bg6 {[%emt 0:00:06]} 6. h4 {[%emt 0:00:09]} h6 {[%emt 0:00:06]} 7. Nf3 {[%emt 0:00:17]} e6 {[%emt 0:01:28]} 8. h5 {[%emt 0:01:56]} Bh7 {[%emt 0:00:06]} 9. Bd3 {[%emt 0:00:10]} Bxd3 {[%emt 0:00:07]} 10. Qxd3 {[%emt 0:00:05]} Nf6 {[%emt 0:00:33]} 11. Bd2 {[%emt 0:00:49]} c5 {[%emt 0:00:31]} 12. c4 {[%emt 0:10:54] B19: Classical Caro-Kann: 4...Bf5 main line.} (12. O-O-O $11) 12... Nc6 {[%emt 0:06:36] [#]} ({Black should try} 12... cxd4 $15 13. Qxd4 Nc6) 13. d5 $146 {[%emt 0:02:47]} ({Predecessor:} 13. Bc3 cxd4 14. Nxd4 e5 15. Qe3 Nxd4 16. O-O-O Ng4 17. Qe4 Qg5+ 18. f4 Qxf4+ 19. Qxf4 exf4 20. Rxd4 {0-1 (34) Horn,E (2046)-Molchanova,T (2298) Izmir 2004}) 13... exd5 {[%emt 0:08:24]} 14. O-O-O {[%emt 0:04:39] White has an edge.} Be7 {[%emt 0:11:02]} (14... Bd6 $1 $11 {keeps the balance.}) 15. Nf5 $16 {[%emt 0:01:36]} O-O {[%emt 0:05:42] [#]} (15... Kf8 $16) 16. N3h4 $2 {[%emt 0:30:47]} ({Only move:} 16. Bxh6 $1 $18 {[%mdl 512]} gxh6 (16... Ne8 17. Nxe7+) 17. Kb1) 16... Ne4 {[%emt 0:08:11]} (16... Nd4 $5 {[%cal Rf6g4]} 17. Rde1 Bd6 $11) 17. cxd5 {[%emt 0:18:39]} Nxd2 {[%emt 0:02:24]} 18. Nxe7+ {[%emt 0:06:39]} Nxe7 {[%emt 0:06:20]} 19. d6 {[%emt 0:01:54] [#]} Nc6 $1 {[%emt 0:02:44][%cal Oc6d4]} 20. Rxd2 {[%emt 0:00:54]} Qf6 {[%emt 0:00:36]} (20... Re8 $11) 21. Qf5 $1 $14 {[%emt 0:02:07]} Qe6 {[%emt 0:18:02]} 22. Qxe6 {[%emt 0:02:08]} ({Much worse is} 22. Qxc5 Qxa2 23. Qa3 Qe6 $11) 22... fxe6 {[%emt 0:01:26]} 23. Ng6 {[%emt 0:02:09]} Rf5 {[%emt 0:00:49]} 24. f4 {[%emt 0:04:17]} Rd8 $1 {[%emt 0:01:45]} 25. g4 {[%emt 0:02:12]} Rd5 {[%emt 0:00:40]} 26. Rxd5 {[%emt 0:00:16]} exd5 $11 {[%emt 0:00:02][%mdl 4096] Endgame KRN-KRN} 27. Re1 {[%emt 0:00:51]} Kf7 $1 {[%emt 0:01:18]} (27... Rxd6 $2 28. Re8+ Kf7 29. Rf8+ Ke6 30. f5+ Kd7 31. Rf7+ Ke8 32. Rf8+ (32. Rxb7 Rd7 $16) 32... Kd7 33. Rf7+ Ke8 34. Rxg7 $18) 28. Ne5+ {[%emt 0:05:06]} (28. g5 $11) 28... Nxe5 $15 {[%emt 0:00:34]} 29. fxe5 {[%emt 0:00:30] Strongly threatening e6+. KR-KR} Ke6 {[%emt 0:00:07]} 30. Rf1 {[%emt 0:00:04]} Kxe5 {[%emt 0:01:14]} (30... c4 {looks sharper.} 31. Kc2 b5 32. g5 hxg5 33. Rg1 Rd7) 31. Rf7 {[%emt 0:00:04][%csl LRb7,LRg7]} Rxd6 {[%emt 0:00:48]} 32. Rxg7 {[%emt 0:02:02]} Rb6 {[%emt 0:00:47]} 33. g5 {[%emt 0:00:44]} hxg5 {[%emt 0:00:32]} 34. Rxg5+ {[%emt 0:00:04]} Ke4 {[%emt 0:00:16]} 35. Rg6 {[%emt 0:01:22] Inhibits Rh6. aiming for Rxb6.} Kf5 {[%emt 0:00:11]} 36. Rg7 {[%emt 0:01:28]} a5 {[%emt 0:01:19]} 37. Rd7 $2 {[%emt 0:00:00]} (37. b3 $11) 37... Ke5 {[%emt 0:00:39]} (37... Ke4 $19 {Threatens to win with ...Rh6.} 38. Kc2 Rh6 39. Re7+ Kd4 40. Rxb7 Rxh5) 38. Rh7 {[%emt 0:00:04] Inhibits Rh6.} (38. Rg7 $1 $15) 38... Rb4 {[%emt 0:00:40]} 39. h6 {[%emt 0:00:30]} b5 {[%emt 0:01:39][%cal Bb7b5,Bb5b4][%mdl 32]} 40. Rc7 {[%emt 0:00:53]} Kd6 {[%emt 0:00:52]} 41. h7 $2 {[%emt 0:00:28]} (41. Ra7 $17) 41... Rh4 $19 {[%emt 0:00:11]} 42. Rg7 {[%emt 0:00:06]} c4 {[%emt 0:00:30]} 43. Kd2 {[%emt 0:00:31]} Kc5 {[%emt 0:00:31]} 44. a3 $2 {[%emt 0:00:32]} (44. Ke3 {was necessary.}) 44... b4 {[%emt 0:00:23]} 45. Ra7 {[%emt 0:00:25]} (45. Ke2 $142 bxa3 46. bxa3) 45... bxa3 {[%emt 0:00:47]} 46. Rxa5+ {[%emt 0:00:19]} Kd4 {[%emt 0:00:51]} 47. Rxa3 {[%emt 0:00:39] [#]} Rxh7 $2 {[%emt 0:00:05]} (47... Rh2+ $1 $19 48. Kd1 Rxh7) 48. Rg3 $17 {[%emt 0:00:24]} Rh2+ {[%emt 0:00:12]} 49. Kc1 {[%emt 0:00:04]} Re2 {[%emt 0:00:10] ...Rh2 is the strong threat. Black is more active.} 50. Rc3 {[%emt 0:01:25]} (50. Rh3 $17 {only move.}) 50... Re3 {[%emt 0:00:54]} (50... Ke5 $19 {White must now prevent ...Rh2.} 51. Kb1 Rg2) 51. Rc2 {[%emt 0:00:37][%mdl 8192]} (51. Kd2 $17 Re5 52. Rh3) 51... Re1+ {[%emt 0:00:04]} 52. Kd2 {[%emt 0:00:02] [#]} Rb1 {[%emt 0:00:04] Black mates.} 53. Ke2 {[%emt 0:00:41]} Kc5 {[%emt 0:00:08]} 54. Ke3 {[%emt 0:00:46]} d4+ {[%emt 0:00:08][%cal Bd5d4,Bd4d3][%mdl 32]} 55. Ke4 {[%emt 0:00:30]} Re1+ {[%emt 0:00:24]} 56. Kf3 {[%emt 0:00:08]} d3 {[%emt 0:00:23]} 57. Rh2 {[%emt 0:00:08]} Kb4 {[%emt 0:00:10]} 58. Rd2 {[%emt 0:01:16]} Kb3 {[%emt 0:00:12]} 59. Rh2 {[%emt 0:00:27]} Re2 {[%emt 0:00:17]} 60. Rh4 {[%emt 0:00:11]} Rxb2 {[%emt 0:00:06] Weighted Error Value: White=0.48/Black=0.34} 0-1

[Event "13th Chennai Open 2022"]
[Site "Chennai"]
[Date "2022.06.24"]
[Round "8.15"]
[White "Adireddy Arjun"]
[Black "Rajesh, V A V"]
[Result "0-1"]
[ECO "C76"]
[WhiteElo "1898"]
[BlackElo "2358"]
[Annotator "TA"]
[PlyCount "128"]
[EventDate "2022.06.19"]
[EventType "swiss"]
[EventCountry "IND"]
[SourceTitle "playchess.com"]
[Source "ChessBase"]
[SourceQuality "1"]
[TimeControl "5400+30"]

{[%evp 19,128,6,17,-5,-5,-5,-5,-5,-9,-4,-1,-6,-6,-8,0,0,0,-13,-13,-30,-34,-32,-25,-31,-29,-121,-126,-116,-122,-108,-97,-189,-87,-75,-75,-70,-71,-57,-91,-82,-41,-35,-43,-97,-106,-103,-104,-137,-138,-152,-161,-227,-221,-223,-207,-219,-207,-331,-191,-173,-169,-248,-236,-275,-234,-255,-241,-434,-445,-531,-483,-516,-466,-439,-422,-579,-454,-830,-830,-1185,-1148,-5081,-4395,-4133,-2829,-29956,-29956,-6099,-5081,-1386,-8,-29977,-29978,-29980,-29981,-29981,-29982,-29982,-29983,-29983,-29984,-29985,-29986,-29986,-29987,-29989,-29988,-29989,-29990,-29998,-29999]} 1. e4 {[%emt 0:01:11]} e5 {[%emt 0:00:06]} 2. Nf3 {[%emt 0:00:07]} Nc6 {[%emt 0:00:18]} 3. Bb5 {[%emt 0:00:13]} a6 {[%emt 0:00:16]} 4. Ba4 {[%emt 0:00:05]} d6 {[%emt 0:00:26]} 5. O-O {[%emt 0:00:45]} Bd7 {[%emt 0:00:04]} 6. c3 {[%emt 0:02:16]} g6 {[%emt 0:00:42]} 7. d4 {[%emt 0:01:01]} Bg7 {[%emt 0:00:09]} 8. dxe5 {[%emt 0:02:08]} dxe5 {[%emt 0:01:41]} 9. Be3 {[%emt 0:11:19]} Nf6 {[%emt 0:04:37]} 10. Nbd2 {[%emt 0:00:37]} O-O {[%emt 0:04:00] The main line 10...0-0 scores better than 10...Qe7.} 11. Bxc6 {[%emt 0:11:25] C76: Ruy Lopez: Deferred Steinitz: 5 c3 Bd7 6 d4 g6.} (11. Re1 {is interesting.} Qe7 12. b4 Rfd8 13. Qc2) 11... Bxc6 {[%emt 0:02:21]} 12. Nxe5 {[%emt 0:00:07]} Bxe4 {[%emt 0:01:21]} 13. Nxe4 {[%emt 0:15:03] The position is equal.} (13. Qb3 {with more complications.} Bd5 14. c4 Re8 15. Ndf3) 13... Nxe4 {[%emt 0:00:07]} 14. Qxd8 {[%emt 0:02:23]} Raxd8 {[%emt 0:00:10] [#]} 15. Nc4 $146 {[%emt 0:00:41]} ({Predecessor:} 15. Nf3 Rd5 16. Rfd1 Rfd8 17. Rxd5 Rxd5 18. Re1 f5 19. Ng5 Nxg5 20. Bxg5 h6 21. Be3 {0-1 (40) Aakanksha,H (2230)-Padmini,R (2372) Ahmedabad 2020}) 15... Rd5 {[%emt 0:10:21]} 16. Rfd1 {[%emt 0:03:38]} Rfd8 {[%emt 0:01:22]} 17. Rxd5 {[%emt 0:00:07]} Rxd5 {[%emt 0:00:04]} 18. f3 {[%emt 0:01:38]} Nc5 {[%emt 0:01:47]} 19. Bxc5 {[%emt 0:02:28]} Rxc5 $11 {[%emt 0:00:21][%mdl 4096] Endgame KRB-KRN} 20. Ne3 {[%emt 0:01:19]} Rb5 {[%emt 0:01:33]} 21. Nc4 {[%emt 0:02:44]} Rd5 {[%emt 0:01:35][%cal Bb5d5,Bd5d2,Bd2c2][%mdl 32]} 22. Ne3 {[%emt 0:15:37]} (22. Kf1 $11) 22... Rd2 $1 $17 {[%emt 0:01:39]} 23. Nc4 {[%emt 0:00:04]} Rc2 {[%emt 0:04:08]} 24. Rd1 {[%emt 0:00:06]} b5 {[%emt 0:23:45]} 25. Rd8+ {[%emt 0:00:59]} Bf8 {[%emt 0:00:11]} 26. Ne5 {[%emt 0:00:40] [#] And now Nd7 would win.} Kg7 $1 {[%emt 0:00:45]} 27. Rd7 {[%emt 0:00:44][%csl LRc7,LRf7]} Bc5+ {[%emt 0:07:42]} 28. Kf1 {[%emt 0:00:07]} Rf2+ {[%emt 0:00:51]} 29. Ke1 {[%emt 0:00:09]} Rxb2 {[%emt 0:01:58]} 30. Rxf7+ {[%emt 0:06:29]} Kg8 {[%emt 0:00:14]} 31. Rd7 {[%emt 0:04:09]} (31. Rxc7 $15 Bd6 32. Rc8+ Kg7 33. Ng4) 31... Rxg2 {[%emt 0:08:03]} 32. Ng4 {[%emt 0:01:20] [#]} Kf8 $1 {[%emt 0:00:30]} ({Reject} 32... Rxa2 $6 33. Nf6+ Kf8 34. Nxh7+ Kg8 35. Nf6+ Kf8 36. Nh7+ Kg8 37. Nf6+ Kf8 38. Nh7+ $11) 33. Rxh7 {[%emt 0:01:53]} Bd6 {[%emt 0:02:03] Black is more active.} ({And not} 33... Rxa2 34. Rxc7 Bd6 35. Rd7 $15) 34. h4 {[%emt 0:03:37]} Rxa2 {[%emt 0:01:13]} 35. Nf6 {[%emt 0:03:26]} (35. Kd1 {keeps fighting.}) 35... Rh2 $19 {[%emt 0:02:37] Strongly threatening ...Be5.} 36. Nd7+ {[%emt 0:03:41]} Ke8 {[%emt 0:00:15]} 37. Nf6+ {[%emt 0:00:11]} Kd8 {[%emt 0:00:06]} 38. Rh6 {[%emt 0:01:41]} (38. Ne4 {was worth a try.}) 38... Rxh4 {[%emt 0:11:14]} 39. Rxg6 {[%emt 0:00:13]} a5 {[%emt 0:00:43]} 40. Ne4 {[%emt 0:00:30]} (40. Ke2 $142) 40... Be7 {[%emt 0:00:26]} 41. Ra6 {[%emt 0:00:30]} a4 {[%emt 0:03:51]} 42. Ke2 {[%emt 0:00:47][%cal Oc3c4]} a3 {[%emt 0:02:03] Threatens to win with ...Kc8.} 43. Ke3 $2 {[%emt 0:00:45]} (43. Ra5) 43... Kc8 {[%emt 0:01:10]} 44. f4 {[%emt 0:00:53]} Kb7 {[%emt 0:01:01] Inhibits Ra8.} 45. Rg6 {[%emt 0:01:16]} Rh1 {[%emt 0:03:11] aiming for ...a2.} 46. Rg2 {[%emt 0:00:14]} Kc6 {[%emt 0:00:00]} ({Avoid the trap} 46... c5 $2 47. Rg7 Re1+ 48. Kf3 $19) 47. Kd4 {[%emt 0:02:01]} Rf1 {[%emt 0:00:00]} 48. Ke5 {[%emt 0:00:29]} (48. Kd3 $142) 48... Bd6+ {[%emt 0:00:00]} 49. Nxd6 {[%emt 0:00:26]} cxd6+ {[%emt 0:00:00][%cal Bc7d6,Bd6d5][%mdl 32] KR-KR} 50. Ke4 {[%emt 0:00:02]} Kc5 {[%emt 0:01:38]} 51. Ra2 {[%emt 0:00:05]} d5+ {[%emt 0:00:11]} 52. Ke3 {[%emt 0:01:11]} b4 {[%emt 0:00:18]} 53. cxb4+ {[%emt 0:00:05]} Kxb4 {[%emt 0:00:11] ( -> ...Kb3)} 54. Rd2 {[%emt 0:00:05]} Kc3 $2 {[%emt 0:01:33]} (54... Re1+ $19 55. Kf2 Re4) 55. Rxd5 $2 {[%emt 0:00:06][%mdl 8192] White does not recover from this.} (55. Rd3+ $11 Kb4 56. Rd4+ Kc5 57. Ra4 d4+ 58. Ke4 Re1+ 59. Kd3 Re3+ 60. Kc2 Rc3+ 61. Kd2) 55... a2 {[%emt 0:00:22] Black mates.} 56. Ra5 {[%emt 0:00:47]} a1=Q {[%emt 0:00:24]} 57. Rxa1 {[%emt 0:00:04]} Rxa1 {[%emt 0:00:06] KR-KP} 58. Ke4 {[%emt 0:00:11]} Kc4 {[%emt 0:00:18]} 59. Ke5 {[%emt 0:00:08]} Kc5 {[%emt 0:00:48]} 60. f5 {[%emt 0:00:10]} Re1+ {[%emt 0:00:15]} 61. Kf6 {[%emt 0:00:34]} Kd6 {[%emt 0:00:12]} 62. Kg7 {[%emt 0:00:16]} Rf1 {[%emt 0:00:13]} 63. f6 {[%emt 0:00:04]} Ke6 {[%emt 0:00:05]} 64. Kh8 {[%emt 0:00:06]} Kf7 {[%emt 0:00:04] Weighted Error Value: White=0.74/Black=0.13 (very precise)} 0-1